bitfinex-derivatives/quotes_SOLF0:USTF0_20240918
["timestamp","ask_amount","ask_price","bid_price","bid_amount"]
[1726620253362,14.7,130.69,130.65,3.8259]
[1726620253661,18.525,130.69,130.65,3.8259]
[1726620254161,18.525,130.69,130.66,3.8257]
[1726620254563,18.525,130.69,130.65,3.8259]
[1726620254762,18.525,130.69,130.64,1.4644]
[1726620255669,14.7,130.69,130.66,3.8255]
[1726620257164,14.7,130.69,130.67,3.8254]
[1726620257365,15.3,130.7,130.67,3.8254]
[1726620258664,15.3,130.7,130.68,3.825]
[1726620258857,15.3,130.7,130.65,14.7]
[1726620259063,14.7,130.8,130.66,14.7]
[1726620259064,14.7,130.74,130.66,14.7]
[1726620259256,14.7,130.76,130.68,14.7]
[1726620259566,14.7,130.76,130.69,1.4299]
[1726620260155,14.7,130.76,130.71,3.8242]
[1726620260658,18.5229,130.76,130.72,3.8239]
[1726620261365,3.8231,130.75,130.72,3.8239]
[1726620261762,14.7,130.76,130.72,3.8239]
[1726620261959,18.5229,130.76,130.72,3.8239]
[1726620262761,3.8225,130.77,130.73,3.8235]
[1726620263764,3.8228,130.76,130.73,3.8235]
[1726620264069,14.7,130.76,130.69,1.4299]
[1726620264370,3.8231,130.75,130.69,1.4299]
[1726620264561,16.8211,130.78,130.72,3.824]
[1726620264761,3.8227,130.77,130.7,14.7]
[1726620265663,3.8227,130.77,130.73,3.8236]
[1726620266368,1.4318,130.8,130.72,14.7]
[1726620266562,16.1318,130.8,130.72,14.7]
[1726620266759,16.1318,130.8,130.7,16.21]
[1726620266760,14.7,130.78,130.7,16.21]
[1726620266961,3.8228,130.76,130.72,3.8238]
[1726620267164,3.8228,130.76,130.7,16.21]
[1726620267670,3.8226,130.77,130.73,3.8237]
[1726620269468,14.7,130.78,130.73,3.8237]
[1726620269664,3.8229,130.76,130.72,3.8239]
[1726620269964,14.7,130.76,130.7,1.51]
[1726620270169,3.8233,130.75,130.7,1.51]
[1726620271873,3.8233,130.75,130.72,3.824]
[1726620273570,16.1318,130.8,130.71,18.46283215]
[1726620273571,1.4318,130.8,130.71,18.46283215]
[1726620273768,14.7,130.79,130.71,18.46283215]
[1726620274070,14.7,130.79,130.73,3.8236]
[1726620274071,3.8228,130.76,130.73,3.8236]
[1726620274261,14.7,130.78,130.7,1.51]
[1726620274666,14.7,130.76,130.7,1.51]
[1726620274865,3.8232,130.75,130.72,3.8238]
[1726620275066,3.8232,130.75,130.7,1.51]
[1726620275464,3.8234,130.74,130.71,3.8241]
[1726620275663,14.7,130.76,130.69,1.4299]
[1726620276164,14.7,130.78,130.72,3.8239]
[1726620276959,3.823,130.76,130.72,3.8239]
[1726620277172,3.823,130.76,130.73,3.8235]
[1726620277365,14.7,130.78,130.73,3.8235]
[1726620277563,3.8226,130.77,130.69,16.1299]
[1726620278772,3.8226,130.77,130.73,3.8234]
[1726620280474,3.8226,130.77,130.74,3.8234]
[1726620280774,3.8226,130.77,130.71,3.87004545]
[1726620280974,3.8226,130.77,130.73,3.8235]
[1726620282268,3.8226,130.77,130.71,18.59614439]
[1726620282472,3.8226,130.77,130.72,1.4945]
[1726620282971,3.8226,130.77,130.72,5.37887103]
[1726620283778,3.8226,130.77,130.74,3.8234]
[1726620287071,13.2226,130.77,130.74,3.8234]
[1726620288464,1.4318,130.8,130.76,3.8226]
[1726620288677,1.4231,130.81,130.76,9.4]
[1726620288870,9.4,130.8,130.76,9.4]
[1726620289068,9.4,130.79,130.73,10.8772]
[1726620289666,3.8224,130.78,130.75,3.823]
[1726620290478,3.8211,130.82,130.78,3.822]
[1726620290777,9.4,130.8,130.75,9.4]
[1726620290978,15.3,130.83,130.74,1.5021]
[1726620290979,9.4,130.78,130.74,1.5021]
[1726620291177,9.4,130.78,130.75,3.8229]
[1726620292281,13.222,130.79,130.75,3.8229]
[1726620294673,13.222,130.79,130.76,3.8228]
[1726620297588,13.2217,130.8,130.77,3.8224]
[1726620298581,3.8217,130.8,130.77,3.8224]
[1726620298784,5.26081246,130.85,130.77,9.4]
[1726620298983,9.4,130.81,130.77,9.4]
[1726620300884,3.8217,130.8,130.77,13.2224]
[1726620301185,1.4497,130.85,130.79,9.4]
[1726620301389,10.8497,130.85,130.8,9.4]
[1726620301683,9.4,130.85,130.8,9.4]
[1726620301880,3.8206,130.84,130.8,13.2215]
[1726620302080,15.3,130.86,130.8,13.2215]
[1726620302285,9.4,130.85,130.82,9.4]
[1726620302482,15.3,130.86,130.82,9.4]
[1726620303384,9.4,130.85,130.82,9.4]
[1726620303777,3.8202,130.85,130.82,9.4]
[1726620305590,3.8202,130.85,130.82,13.221]
[1726620305897,3.82,130.86,130.83,9.4]
[1726620306087,3.82,130.86,130.83,13.2207]
[1726620306280,9.4,130.88,130.84,9.4]
[1726620306481,3.8196,130.87,130.84,9.4]
[1726620306988,3.8196,130.87,130.84,13.2204]
[1726620307783,9.4,130.9,130.85,3.8202]
[1726620307990,9.4,130.9,130.84,9.4]
[1726620308487,1.4139,130.92,130.86,9.4]
[1726620308787,9.4,130.91,130.86,9.4]
[1726620308980,3.8188,130.9,130.86,13.2196]
[1726620309385,9.4,130.91,130.86,13.2196]
[1726620310182,1.5085,130.95,130.88,9.4]
[1726620310388,24.68,130.93,130.88,9.4]
[1726620310588,3.8186,130.91,130.88,9.4]
[1726620310784,24.68,130.93,130.88,9.4]
[1726620311194,3.8186,130.91,130.88,9.4]
[1726620312492,3.8186,130.91,130.88,10.8224]
[1726620313096,3.8182,130.92,130.89,9.4]
[1726620313402,1.5085,130.95,130.9,9.4]
[1726620313403,9.4,130.95,130.9,9.4]
[1726620313797,3.8182,130.92,130.9,9.4]
[1726620314896,3.80455881,130.99,130.91,9.4]
[1726620315095,1.4129,131.0,130.93,9.4]
[1726620315303,20.62845575,131.01,130.93,9.4]
[1726620315493,16.7662,131.01,130.92,3.8181]
[1726620315702,9.4,130.99,130.94,9.4]
[1726620315902,3.8168,130.97,130.94,9.4]
[1726620316298,9.4,130.99,130.94,9.4]
[1726620316504,9.4,131.0,130.96,9.4]
[1726620316701,9.4,130.99,130.95,9.4]
[1726620317307,3.8164,130.98,130.96,9.4]
[1726620317510,16.7662,131.01,130.94,3.8175]
[1726620317511,9.4,130.99,130.95,9.4]
[1726620317697,9.4,131.0,130.96,9.4]
[1726620318098,3.8163,130.99,130.96,9.4]
[1726620318307,9.4,131.03,130.97,9.4]
[1726620318805,3.816,131.0,130.97,9.4]
[1726620319305,3.816,131.0,130.95,11.98277888]
[1726620319306,3.816,131.0,130.98,9.4]
[1726620319609,9.4,131.03,130.98,9.4]
[1726620319801,9.4,131.04,131.0,9.4]
[1726620320005,15.28,131.09,131.01,9.4]
[1726620320201,3.8149,131.03,131.01,9.4]
[1726620321002,9.4,131.06,131.01,9.4]
[1726620321208,15.28,131.09,131.01,9.4]
[1726620321411,9.4,131.06,131.01,9.4]
[1726620321706,15.28,131.09,131.01,9.4]
[1726620321904,15.28,131.09,130.95,8.16567888]
[1726620321905,14.66,131.07,130.95,8.16567888]
[1726620322104,14.66,131.07,130.98,14.66]
[1726620322307,14.66,131.07,130.99,3.816]
[1726620322811,14.66,131.08,131.0,14.66]
[1726620323000,3.8148,131.04,131.0,18.4757]
[1726620323200,29.94,131.09,131.01,1.5118]
[1726620323703,14.66,131.08,131.01,2.997]
[1726620323904,3.8146,131.05,131.01,2.997]
[1726620324198,14.66,131.08,131.01,2.997]
[1726620325100,29.94,131.09,131.01,2.997]
[1726620325306,3.8145,131.05,131.01,2.997]
[1726620326715,3.8143,131.05,131.01,17.657]
[1726620327110,3.8141,131.06,131.01,17.657]
[1726620327312,2.9646,131.11,131.01,17.657]
[1726620327313,17.6246,131.11,131.01,17.657]
[1726620327509,14.66,131.09,131.01,17.657]
[1726620328012,14.66,131.09,131.01,2.997]
[1726620328607,14.66,131.09,131.01,6.8123]
[1726620329212,3.8143,131.06,131.02,18.4752]
[1726620329406,3.8143,131.06,131.02,14.66]
[1726620329918,3.8143,131.06,131.02,18.4751]
[1726620330312,2.9646,131.11,131.03,14.66]
[1726620330511,2.9646,131.11,131.03,18.4748]
[1726620331011,2.9646,131.11,131.04,3.8146]
[1726620331512,2.9646,131.11,131.03,18.48500881]
[1726620331711,2.9646,131.11,131.05,14.66]
[1726620332011,3.8134,131.09,131.05,14.66]
[1726620332213,31.3472,131.14,131.05,18.4742]
[1726620332409,3.813,131.1,131.05,18.4742]
[1726620332715,31.3472,131.14,131.05,14.66]
[1726620332916,14.66,131.12,131.03,3.82500881]
[1726620333115,14.66,131.12,131.03,14.66]
[1726620333319,14.66,131.12,131.04,3.81823001]
[1726620335120,3.8134,131.09,131.04,7.63283001]
[1726620335317,14.66,131.12,131.03,14.66]
[1726620335614,14.66,131.12,131.03,18.40400335]
[1726620336116,14.66,131.1,131.02,19.9919]
[1726620336319,3.8139,131.07,131.02,19.9919]
[1726620336517,14.66,131.12,131.04,14.66]
[1726620336927,1.4272,131.14,131.05,18.4743]
[1726620337120,16.0872,131.14,131.05,18.4743]
[1726620337524,3.813,131.1,131.05,18.4743]
[1726620338116,1.4272,131.14,131.07,14.66]
[1726620338720,3.8128,131.11,131.07,14.66]
[1726620339217,16.0872,131.14,131.07,14.66]
[1726620339422,14.66,131.12,131.04,14.66]
[1726620340019,3.8137,131.08,131.04,14.66]
[1726620340521,16.0872,131.14,131.05,14.66]
[1726620341021,3.8131,131.1,131.06,3.814]
[1726620341419,3.8131,131.1,131.05,18.4742]
[1726620342023,3.8131,131.1,131.08,9.37]
[1726620343425,3.8132,131.09,131.08,9.37]
[1726620343919,1.4272,131.14,131.06,10.8712]
[1726620343920,9.37,131.11,131.06,10.8712]
[1726620344118,9.37,131.09,131.02,5.28713195]
[1726620344313,9.37,131.09,131.04,9.37]
[1726620344526,1.4272,131.14,131.02,12.4152]
[1726620344722,1.4272,131.14,131.06,9.37]
[1726620345019,9.37,131.1,131.05,9.37]
[1726620345219,3.814,131.06,131.05,9.37]
[1726620345722,3.8138,131.07,131.05,9.37]
[1726620346720,3.814,131.06,131.05,9.37]
[1726620347930,9.37,131.08,131.03,9.37]
[1726620348116,3.8145,131.05,131.03,9.37]
[1726620348929,3.8141,131.06,131.02,16.2304]
[1726620349127,3.8141,131.06,131.03,9.37]
[1726620351219,9.37,131.07,131.03,9.37]
[1726620351220,3.814,131.07,131.05,9.37]
[1726620351416,9.37,131.09,131.05,9.37]
[1726620351723,1.4272,131.14,131.08,9.37]
[1726620351724,9.37,131.13,131.08,9.37]
[1726620352822,9.37,131.1,131.02,6.90846261]
[1726620353029,1.4272,131.14,131.04,9.37]
[1726620353221,9.37,131.1,131.05,9.37]
[1726620353621,3.8137,131.08,131.05,9.37]
[1726620354030,9.37,131.1,131.04,9.37]
[1726620355728,3.814,131.07,131.04,9.37]
[1726620356926,1.4272,131.14,131.06,9.37]
[1726620357125,9.37,131.12,131.06,9.37]
[1726620357330,9.37,131.1,131.06,9.37]
[1726620357632,3.8135,131.08,131.06,9.37]
[1726620357841,3.8135,131.08,131.05,9.37]
[1726620359438,3.8138,131.07,131.05,9.37]
[1726620359631,9.37,131.09,131.05,9.37]
[1726620360135,3.814,131.07,131.05,9.37]
[1726620360338,9.37,131.08,131.04,9.37]
[1726620360544,9.37,131.08,131.03,9.37]
[1726620360844,3.8138,131.07,131.04,9.37]
[1726620361632,3.8136,131.08,131.04,13.1846]
[1726620361839,3.8136,131.08,131.06,9.37]
[1726620362727,3.8138,131.07,131.06,9.37]
[1726620362929,3.8138,131.07,131.03,3.8149]
[1726620362930,9.37,131.08,131.03,9.37]
[1726620363442,3.8142,131.06,131.03,9.37]
[1726620364139,3.8138,131.07,131.04,9.37]
[1726620365138,1.4272,131.14,131.02,6.8509382]
[1726620365139,9.37,131.11,131.02,6.8509382]
[1726620365437,9.37,131.1,131.06,9.37]
[1726620365636,1.4272,131.14,131.06,9.37]
[1726620365841,9.37,131.12,131.07,9.37]
[1726620366035,9.37,131.12,131.08,9.37]
[1726620366234,3.8128,131.11,131.08,9.37]
[1726620366439,9.37,131.12,131.08,9.37]
[1726620366838,9.37,131.12,131.07,9.37]
[1726620367041,9.37,131.11,131.06,9.37]
[1726620368035,3.8133,131.09,131.06,9.37]
[1726620368240,9.37,131.11,131.06,9.37]
[1726620368745,3.8135,131.08,131.06,9.37]
[1726620369340,3.8133,131.09,131.06,9.37]
[1726620369742,3.8133,131.09,131.07,9.37]
[1726620369947,3.813,131.1,131.07,9.37]
[1726620370835,3.8133,131.09,131.07,9.37]
[1726620372143,3.8135,131.08,131.07,9.37]
[1726620372348,3.8135,131.08,131.05,9.37]
[1726620373047,3.8142,131.06,131.02,10.6660382]
[1726620373253,9.37,131.08,131.02,3.0495]
[1726620373449,9.37,131.08,131.03,9.37]
[1726620373746,3.8142,131.06,131.03,9.37]
[1726620373948,9.37,131.08,131.03,9.37]
[1726620374146,3.8142,131.06,131.03,9.37]
[1726620375345,3.8139,131.07,131.03,9.37]
[1726620375745,3.8142,131.06,131.03,9.37]
[1726620376256,9.37,131.09,131.04,9.37]
[1726620376554,9.37,131.1,131.05,9.37]
[1726620376943,9.37,131.1,131.07,9.37]
[1726620377142,9.37,131.13,131.08,9.37]
[1726620378146,3.8131,131.1,131.08,9.37]
[1726620378351,15.26,131.16,131.08,9.37]
[1726620378552,9.37,131.14,131.09,9.37]
[1726620379756,9.37,131.13,131.08,9.37]
[1726620380454,3.8129,131.1,131.08,9.37]
[1726620382959,15.26,131.16,131.04,3.8146]
[1726620383258,9.37,131.12,131.07,9.37]
[1726620384257,3.8128,131.11,131.07,9.37]
[1726620384859,3.8129,131.1,131.08,9.37]
[1726620385257,9.37,131.14,131.09,9.37]
[1726620385466,3.8128,131.11,131.09,9.37]
[1726620385653,3.8128,131.11,131.08,9.37]
[1726620387670,3.8129,131.1,131.08,9.37]
[1726620387856,9.37,131.12,131.07,10.7542]
[1726620388664,3.8133,131.09,131.07,1.3842]
[1726620389363,3.8135,131.08,131.07,1.3842]
[1726620389770,9.37,131.09,131.02,5.26224031]
[1726620389970,9.37,131.08,131.03,10.7532]
[1726620390169,9.37,131.08,131.04,9.37]
[1726620390366,3.8143,131.06,131.04,9.37]
[1726620391069,3.8139,131.07,131.04,9.37]
[1726620392673,3.814,131.06,131.04,9.37]
[1726620393679,9.37,131.09,131.04,9.37]
[1726620393870,3.8138,131.07,131.04,9.37]
[1726620397369,15.26,131.14,131.06,9.37]
[1726620397570,9.37,131.1,131.06,9.37]
[1726620398375,3.8137,131.08,131.06,9.37]
[1726620400172,1.4382,131.13,131.07,9.37]
[1726620400173,3.8133,131.09,131.07,9.37]
[1726620400483,3.8133,131.09,131.08,9.37]
[1726620402172,15.26,131.14,131.08,9.37]
[1726620402378,15.26,131.14,131.1,9.37]
[1726620402576,15.26,131.14,131.11,9.37]
[1726620402783,3.8123,131.12,131.11,9.37]
[1726620403183,15.26,131.14,131.11,9.37]
[1726620403784,3.8122,131.13,131.11,1.12653047]
[1726620403979,15.26,131.14,131.12,9.37]
[1726620404879,117.14710434,131.26,131.13,9.37]
[1726620404880,15.26,131.22,131.13,9.37]
[1726620405076,3.8116,131.15,131.13,9.37]
[1726620407284,16.7319,131.22,131.13,9.37]
[1726620407483,10.876,131.19,131.13,9.37]
[1726620407782,3.8111,131.17,131.15,9.37]
[1726620408087,10.876,131.19,131.15,2.52601484]
[1726620408480,9.37,131.17,131.13,9.37]
[1726620409082,3.8112,131.16,131.13,9.37]
[1726620409686,3.8115,131.15,131.13,9.37]
[1726620412384,1.506,131.19,131.14,9.37]
[1726620412586,10.876,131.19,131.14,9.37]
[1726620412784,9.37,131.18,131.14,9.37]
[1726620412987,3.8114,131.16,131.14,9.37]
[1726620413479,3.8114,131.15,131.13,9.37]
[1726620415694,9.37,131.14,131.08,5.3118]
[1726620415895,9.37,131.13,131.09,9.37]
[1726620416196,3.8132,131.09,131.08,1.4984]
[1726620416392,9.37,131.12,131.08,1.4984]
[1726620416593,9.37,131.12,131.08,10.8684]
[1726620416897,3.8132,131.09,131.08,1.4984]
[1726620417289,3.8132,131.09,131.07,9.37]
[1726620420093,3.8128,131.11,131.08,9.37]
[1726620420301,9.37,131.12,131.04,1.4853]
[1726620420495,9.37,131.11,131.07,9.37]
[1726620420686,1.5129,131.17,131.04,1.4853]
[1726620420687,3.8139,131.07,131.04,1.4853]
[1726620420998,9.37,131.11,131.06,9.37]
[1726620421194,5.37327882,131.17,131.06,9.37]
[1726620421388,5.37327882,131.17,131.07,9.37]
[1726620421596,5.37327882,131.17,131.08,9.37]
[1726620421796,3.8128,131.11,131.08,9.37]
[1726620421996,9.37,131.13,131.08,9.37]
[1726620422196,3.8129,131.1,131.08,9.37]
[1726620422995,3.8129,131.1,131.04,1.4853]
[1726620422996,3.8132,131.09,131.07,9.37]
[1726620423595,3.8135,131.08,131.06,9.37]
[1726620423796,3.8135,131.08,131.05,9.37]
[1726620424000,9.37,131.11,131.07,9.37]
[1726620424200,9.37,131.1,131.06,9.37]
[1726620424794,3.8132,131.09,131.06,9.37]
[1726620425300,9.37,131.1,131.06,9.37]
[1726620425704,3.8132,131.09,131.06,9.37]
[1726620425898,9.37,131.11,131.07,9.37]
[1726620427494,3.8135,131.08,131.07,9.37]
[1726620427901,9.37,131.11,131.07,9.37]
[1726620428708,3.8133,131.09,131.07,9.37]
[1726620430400,9.37,131.09,131.04,1.4853]
[1726620430603,9.37,131.08,131.04,1.4853]
[1726620430800,3.8138,131.07,131.04,1.4853]
[1726620433312,3.8141,131.06,131.04,1.4853]
[1726620433504,3.8141,131.06,131.03,9.37]
[1726620433803,3.8141,131.06,131.01,9.37]
[1726620433804,3.8148,131.04,131.01,9.37]
[1726620434003,9.37,131.06,131.01,9.37]
[1726620435007,3.8145,131.05,131.02,9.37]
[1726620435203,3.8145,131.05,130.97,2.9053]
[1726620435204,9.37,131.07,131.03,9.37]
[1726620435502,3.8142,131.06,131.03,9.37]
[1726620435704,9.37,131.07,131.03,9.37]
[1726620436806,9.37,131.06,131.02,9.37]
[1726620437002,9.37,131.06,131.01,9.37]
[1726620437410,9.37,131.05,130.97,2.9053]
[1726620437606,9.37,131.05,131.0,9.37]
[1726620437811,3.8151,131.03,131.0,9.37]
[1726620438109,9.37,131.05,131.0,9.37]
[1726620438313,3.8147,131.04,131.0,9.37]
[1726620439514,13.185,131.03,130.99,9.37]
[1726620439703,9.37,131.03,130.99,9.37]
[1726620440009,9.37,131.03,130.98,9.37]
[1726620440816,3.8154,131.02,130.98,9.37]
[1726620442110,3.8155,131.01,130.97,2.9053]
[1726620442310,9.37,131.01,130.97,12.2753]
[1726620442616,9.37,131.01,130.97,10.7971]
[1726620443217,3.8156,131.01,130.97,10.7971]
[1726620443616,3.8156,131.01,130.98,9.37]
[1726620444014,2.8104,131.09,131.0,9.37]
[1726620444311,9.37,131.05,131.0,9.37]
[1726620444517,3.8151,131.03,131.0,9.37]
[1726620444705,9.37,131.05,131.01,9.37]
[1726620444910,3.8148,131.04,131.01,9.37]
[1726620445316,9.37,131.05,131.01,9.37]
[1726620445911,9.37,131.05,130.99,3.8159]
[1726620446113,9.37,131.04,130.97,1.4271]
[1726620446316,9.37,131.04,130.99,9.37]
[1726620446519,3.8149,131.03,130.99,9.37]
[1726620448316,9.37,131.04,130.99,9.37]
[1726620448510,13.1844,131.05,131.01,9.37]
[1726620448710,3.8144,131.05,131.01,9.37]
[1726620449013,13.1841,131.06,131.01,13.1853]
[1726620449416,3.8141,131.06,131.03,9.37]
[1726620449615,13.1839,131.07,131.03,9.37]
[1726620449817,3.8139,131.07,131.04,9.37]
[1726620450224,3.8141,131.06,131.04,9.37]
[1726620450414,3.8141,131.06,131.03,9.37]
[1726620451216,3.8144,131.05,131.01,1.4202]
[1726620451421,9.37,131.06,131.02,9.37]
[1726620451817,13.1842,131.06,131.02,9.37]
[1726620452026,9.37,131.06,131.02,9.37]
[1726620452822,3.8144,131.05,131.02,9.37]
[1726620454227,13.1842,131.06,131.02,9.37]
[1726620454729,3.8142,131.06,131.03,9.37]
[1726620455215,9.37,131.08,131.05,9.37]
[1726620455625,15.26,131.12,131.05,9.37]
[1726620455626,9.37,131.1,131.05,9.37]
[1726620455820,3.8135,131.08,131.05,9.37]
[1726620456425,9.37,131.09,131.03,9.37]
[1726620456822,3.8139,131.07,131.03,9.37]
[1726620458429,3.8136,131.08,131.03,13.1849]
[1726620458935,3.8138,131.07,131.03,13.1849]
[1726620463433,3.8136,131.08,131.04,3.8146]
[1726620464233,13.1833,131.09,131.05,13.1843]
[1726620464634,3.8133,131.09,131.05,13.1843]
[1726620465035,3.8133,131.09,131.05,9.37]
[1726620465337,9.37,131.08,131.04,9.37]
[1726620465726,13.1836,131.08,131.04,13.1845]
[1726620465930,13.1836,131.08,131.05,9.37]
[1726620466334,15.26,131.13,131.05,13.1843]
[1726620466335,3.8132,131.09,131.05,13.1843]
[1726620468332,3.8132,131.09,131.05,9.37]
[1726620469643,3.8132,131.09,131.05,13.1843]
[1726620470032,9.37,131.1,131.05,13.1843]
[1726620471135,18.187,131.14,131.06,13.184]
[1726620471342,9.37,131.11,131.06,13.184]
[1726620471643,13.1828,131.11,131.06,13.184]
[1726620472737,13.183,131.1,131.06,13.184]
[1726620473433,13.183,131.1,131.06,9.37]
[1726620474136,3.8132,131.09,131.06,9.37]
[1726620474338,18.187,131.14,131.07,9.37]
[1726620474535,9.37,131.11,131.07,9.37]
[1726620474938,3.8129,131.1,131.07,9.37]
[1726620475437,9.37,131.11,131.07,9.37]
[1726620475633,13.1828,131.11,131.07,13.1837]
[1726620476833,24.63,131.14,131.09,9.37]
[1726620477232,24.63,131.14,131.09,13.1831]
[1726620477433,24.63,131.14,131.09,9.37]
[1726620477834,28.4419,131.14,131.09,13.183]
[1726620478335,19.0719,131.14,131.1,9.37]
[1726620478929,9.37,131.15,131.1,13.1828]
[1726620479244,9.37,131.17,131.13,9.37]
[1726620479637,13.181,131.17,131.13,9.37]
[1726620480846,9.37,131.15,131.11,9.37]
[1726620481337,9.37,131.14,131.1,4.3773]
[1726620481743,9.37,131.15,131.1,13.7473]
[1726620482346,19.05187346,131.19,131.11,13.1825]
[1726620482347,3.8112,131.16,131.11,13.1825]
[1726620482549,13.1812,131.16,131.11,13.1825]
[1726620483449,13.1816,131.15,131.1,17.5601]
[1726620483755,9.37,131.14,131.1,1.4518]
[1726620483952,19.11289124,131.19,131.07,9.37]
[1726620483953,13.1828,131.11,131.07,9.37]
[1726620484748,13.1828,131.11,131.07,13.1837]
[1726620485959,13.1824,131.12,131.07,13.1837]
[1726620486159,9.37,131.13,131.08,13.1834]
[1726620486647,13.1822,131.13,131.08,13.1834]
[1726620487053,13.1822,131.13,131.09,13.1831]
[1726620487451,13.1822,131.13,131.09,9.37]
[1726620488348,9.37,131.12,131.07,16.1741]
[1726620488747,9.37,131.12,131.07,12.3604]
[1726620488748,3.8127,131.11,131.07,12.3604]
[1726620488952,19.11289124,131.19,131.07,1.5086]
[1726620488953,9.37,131.1,131.07,1.5086]
[1726620489347,13.1827,131.11,131.07,1.5086]
[1726620489550,9.37,131.12,131.07,10.8786]
[1726620490948,3.8127,131.11,131.07,14.6922]
[1726620491157,19.11289124,131.19,131.08,9.37]
[1726620491347,3.812,131.14,131.11,9.37]
[1726620491545,19.11289124,131.19,131.12,9.37]
[1726620491749,19.11289124,131.19,131.11,9.37]
[1726620491750,9.37,131.15,131.11,9.37]
[1726620491953,9.37,131.15,131.1,9.37]
[1726620492253,3.8119,131.14,131.1,9.37]
[1726620492854,3.812,131.13,131.09,9.37]
[1726620493166,9.37,131.12,131.07,12.3775]
[1726620493451,13.1823,131.12,131.07,12.3775]
[1726620493844,3.8123,131.12,131.08,9.37]
[1726620494453,3.8123,131.12,131.08,13.1834]
[1726620498356,3.8121,131.13,131.1,9.37]
[1726620498657,9.37,131.16,131.11,9.37]
[1726620498858,3.8119,131.14,131.11,9.37]
[1726620499564,3.8115,131.15,131.11,9.37]
[1726620502562,9.37,131.12,131.07,3.0075]
[1726620502757,9.37,131.12,131.08,9.37]
[1726620503159,9.37,131.12,131.08,13.1833]
[1726620503559,9.37,131.12,131.07,6.8211]
[1726620503763,9.37,131.12,131.07,16.1911]
[1726620504858,3.8126,131.11,131.07,16.1911]
[1726620508367,3.8129,131.1,131.07,1.5086]
[1726620509368,3.8129,131.1,131.07,10.8786]
[1726620509964,13.1827,131.11,131.07,10.8786]
[1726620510165,13.1827,131.11,131.07,14.6923]
[1726620510365,9.37,131.11,131.07,14.6923]
[1726620510563,3.8124,131.12,131.07,10.8786]
[1726620510763,9.37,131.12,131.08,9.37]
[1726620510965,9.37,131.12,131.07,1.5086]
[1726620511169,9.37,131.1,131.07,1.5086]
[1726620511668,9.37,131.08,131.01,9.37]
[1726620511869,9.37,131.07,131.03,3.8149]
[1726620512172,9.37,131.05,131.0,9.37]